Department Family,Entity,Date,Expense Type,Expense Area,Supplier,Transaction Number,AP Amount,VAT Registration Number,Purchase Invoice Number
Department of Health,Bridgewater Community Healthcare NHS Foundation Trust,30-Sep-15,Grants,Healthcare Libraries Unit - ALW,WIRRAL UNIVERSITY TEACHING HOSPITAL NHS FOUNDATION TRUST,14859782,"39,484.00",654952016,8510016408
Department of Health,Bridgewater Community Healthcare NHS Foundation Trust,30-Sep-15,"Books, Journals & Subscr",Healthcare Libraries Unit - ALW,WOLTERS KLUWER HEALTH (MEDICAL RESEARCH) LTD,14881941,"100,985.99",818308526,OL38783
Department of Health,Bridgewater Community Healthcare NHS Foundation Trust,30-Sep-15,Services Received - CCG's,Corporate Finance - ALW,NHS ST HELENS CCG,15108513,"38,400.00",,7013300067
Department of Health,Bridgewater Community Healthcare NHS Foundation Trust,30-Sep-15,SrvcsRecd-FoundationTrust,Sexual Health Warrington,WARRINGTON & HALTON HOSPITALS NHS FOUNDATION TRUST,15108943,"29,298.16",654404741,15353210
Department of Health,Bridgewater Community Healthcare NHS Foundation Trust,30-Sep-15,Independent Sector,Intermediate Care - Bed Based Team,PHOENIX HEALTH WARRINGTON LTD,15109709,"39,000.00",,20156Q2
Department of Health,Bridgewater Community Healthcare NHS Foundation Trust,30-Sep-15,Rent,Bath St Health & Wellbeing Centre,COMMUNITY HEALTH PARTNERSHIPS,15110797,"43,289.93",782562113,50383842
Department of Health,Bridgewater Community Healthcare NHS Foundation Trust,30-Sep-15,Rent,Child Development Centre (Orford),COMMUNITY HEALTH PARTNERSHIPS,15110810,"39,331.63",782562113,50383863
Department of Health,Bridgewater Community Healthcare NHS Foundation Trust,30-Sep-15,Lease Rents,Claire House,COMMUNITY HEALTH PARTNERSHIPS,15110825,"28,233.76",782562113,50383868
Department of Health,Bridgewater Community Healthcare NHS Foundation Trust,30-Sep-15,Lease Rents,Pemberton Health Centre,COMMUNITY HEALTH PARTNERSHIPS,15110830,"27,608.41",782562113,50383874
Department of Health,Bridgewater Community Healthcare NHS Foundation Trust,30-Sep-15,Lease Rents,Widnes HCRC,COMMUNITY HEALTH PARTNERSHIPS,15110834,"35,224.45",782562113,50383876
Department of Health,Bridgewater Community Healthcare NHS Foundation Trust,30-Sep-15,Audit Fees: Internal,Corporate Finance - ALW,ROYAL LIVERPOOL&BROADGREEN UNIVERSITY HOSPITALS NHS TRUST (THE),15110844,"33,837.50",654966000,8610037256
Department of Health,Bridgewater Community Healthcare NHS Foundation Trust,30-Sep-15,OOH Comms Equip/GP Rotas,General Medical Services,DR JK AGARWALA,15148736,"30,750.50",,AUG15 2922
Department of Health,Bridgewater Community Healthcare NHS Foundation Trust,30-Sep-15,Bldg/Eng Equip Maint/Rep,Hindley Health Centre,ERIC WRIGHT FACILITIES MANAGEMENT LTD,15164766,"259,951.10",349860318,SI17152
Department of Health,Bridgewater Community Healthcare NHS Foundation Trust,30-Sep-15,Drugs,Medicines Management - WARR,NHS BUSINESS SERVICES AUTHORITY,15181143,"82,624.08",654434729,1000043218
Department of Health,Bridgewater Community Healthcare NHS Foundation Trust,30-Sep-15,Drugs,Medicines Management - WARR,NHS BUSINESS SERVICES AUTHORITY,15181174,"89,906.96",654434729,1000043584
Department of Health,Bridgewater Community Healthcare NHS Foundation Trust,30-Sep-15,Drugs,Medicines Management - WARR,NHS BUSINESS SERVICES AUTHORITY,15181191,"82,081.10",654434729,1000044193
Department of Health,Bridgewater Community Healthcare NHS Foundation Trust,30-Sep-15,Drugs,Medicines Management,NHS BUSINESS SERVICES AUTHORITY,15181274,"90,710.61",654434729,1000044498
Department of Health,Bridgewater Community Healthcare NHS Foundation Trust,30-Sep-15,Services Received - CSU's,Computing - ALW,NHS CHESHIRE AND MERSEYSIDE CSU,15181312,"90,565.00",,7310305429
Department of Health,Bridgewater Community Healthcare NHS Foundation Trust,30-Sep-15,Rent,Leigh Infirmary,COMMUNITY HEALTH PARTNERSHIPS,15181430,"80,250.04",782562113,50379821
Department of Health,Bridgewater Community Healthcare NHS Foundation Trust,30-Sep-15,Drugs,Medicines Management - WARR,NHS BUSINESS SERVICES AUTHORITY,15181512,"91,083.97",654434729,1000045113
Department of Health,Bridgewater Community Healthcare NHS Foundation Trust,30-Sep-15,Rent,Leigh Infirmary,COMMUNITY HEALTH PARTNERSHIPS,15181524,"80,250.04",782562113,50380408
Department of Health,Bridgewater Community Healthcare NHS Foundation Trust,30-Sep-15,Lease Rents,Boston House,COMMUNITY HEALTH PARTNERSHIPS,15182537,"55,499.36",782562113,50383864
Department of Health,Bridgewater Community Healthcare NHS Foundation Trust,30-Sep-15,Rent,Leigh Infirmary,COMMUNITY HEALTH PARTNERSHIPS,15182544,"80,250.04",782562113,50383866
Department of Health,Bridgewater Community Healthcare NHS Foundation Trust,30-Sep-15,Lease Rents,Newton Community Hospital,COMMUNITY HEALTH PARTNERSHIPS,15182552,"93,618.55",782562113,50383869
Department of Health,Bridgewater Community Healthcare NHS Foundation Trust,30-Sep-15,Lease Rents,Platt Bridge Community HC,COMMUNITY HEALTH PARTNERSHIPS,15182568,"60,466.44",782562113,50383875
Department of Health,Bridgewater Community Healthcare NHS Foundation Trust,30-Sep-15,Lease Rents,Child Development Centre Orford,COMMUNITY HEALTH PARTNERSHIPS,15253174,"39,331.63",782562113,50384925
Department of Health,Bridgewater Community Healthcare NHS Foundation Trust,30-Sep-15,Lease Rents,Claire House,COMMUNITY HEALTH PARTNERSHIPS,15253210,"28,233.76",782562113,50384930
Department of Health,Bridgewater Community Healthcare NHS Foundation Trust,30-Sep-15,Stationery,Corporate Finance - ALW,CLARES OFFICE SUPPLIES LTD,15253424,"33,659.12",107340310,SINV00313161
Department of Health,Bridgewater Community Healthcare NHS Foundation Trust,30-Sep-15,Stationery,Corporate Finance - ALW,CLARES OFFICE SUPPLIES LTD,15253432,"33,659.11",107340310,SINV00313160
Department of Health,Bridgewater Community Healthcare NHS Foundation Trust,30-Sep-15,Services Received - CCG's,Corporate Finance - ALW,NHS HALTON CCG,15296573,"46,758.00",,7012200116
Department of Health,Bridgewater Community Healthcare NHS Foundation Trust,30-Sep-15,Hcare Srv Rec NHS Trust,Midwifery Halton,ST HELENS & KNOWSLEY HOSPITALS NHS TRUST,15314183,"112,872.00",654943996,16755173
Department of Health,Bridgewater Community Healthcare NHS Foundation Trust,30-Sep-15,Hlthcre-Foundation Trsts,Midwifery Halton,WARRINGTON & HALTON HOSPITALS NHS FOUNDATION TRUST,15314635,"162,500.00",654404741,15354413
Department of Health,Bridgewater Community Healthcare NHS Foundation Trust,30-Sep-15,SrvcsRecd-FoundationTrust,Midwifery Halton,WARRINGTON & HALTON HOSPITALS NHS FOUNDATION TRUST,15367771,"32,500.00",654404741,15354538
Department of Health,Bridgewater Community Healthcare NHS Foundation Trust,30-Sep-15,Lease Rents,Chandler House,COMMUNITY HEALTH PARTNERSHIPS,15368214,"36,962.02",782562113,50383877
Department of Health,Bridgewater Community Healthcare NHS Foundation Trust,30-Sep-15,Drugs,Out of Hours Medical Services,KENT PHARMACEUTICALS LTD,15394788,"27,950.00",945639974,9000174594
Department of Health,Bridgewater Community Healthcare NHS Foundation Trust,30-Sep-15,Lease Rents,Bath Street,COMMUNITY HEALTH PARTNERSHIPS,15413118,"43,289.93",782562113,50384922
Department of Health,Bridgewater Community Healthcare NHS Foundation Trust,30-Sep-15,Drugs,Medicines Management - WARR,NHS BUSINESS SERVICES AUTHORITY,15435442,"94,199.12",654434729,1000044806
Department of Health,Bridgewater Community Healthcare NHS Foundation Trust,30-Sep-15,Lease Rents,Boston House,COMMUNITY HEALTH PARTNERSHIPS,15435982,"55,499.36",782562113,50384926
Department of Health,Bridgewater Community Healthcare NHS Foundation Trust,30-Sep-15,Lease Rents,Leigh Infirmary,COMMUNITY HEALTH PARTNERSHIPS,15435994,"80,250.04",782562113,50384928
Department of Health,Bridgewater Community Healthcare NHS Foundation Trust,30-Sep-15,Phone Rental and Calls,Estates + Facilities - WARR,VIRGIN MEDIA BUSINESS LTD,15456306,"37,588.31",591819014,928278025
Department of Health,Bridgewater Community Healthcare NHS Foundation Trust,30-Sep-15,Services Received - CCG's,Midwifery Halton,NHS HALTON CCG,15475134,"110,000.00",,7012200227
Department of Health,Bridgewater Community Healthcare NHS Foundation Trust,30-Sep-15,Rent,81a&b Spencer House (clinic/ground floor),SAVILLS (UK) LTD,15475448,"27,344.63",,201500000612
Department of Health,Bridgewater Community Healthcare NHS Foundation Trust,30-Sep-15,Rent,Health Services at Wolves,WARRINGTON FC LTD,15475486,"37,620.00",152685258,18581
Department of Health,Bridgewater Community Healthcare NHS Foundation Trust,30-Sep-15,SrvcsRecd-FoundationTrust,Org Development - ALW,WRIGHTINGTON WIGAN & LEIGH NHS FOUNDATION TRUST,15518524,"87,900.00",654951509,55544820
Department of Health,Bridgewater Community Healthcare NHS Foundation Trust,30-Sep-15,Lease Rents,Bevan House,SHARMA INVESTMENTS LTD,15523653,"33,125.00",,BE17010915
